fUST/lending_fUST_20260608
["ID","MTS","AMOUNT","RATE_DAILY","PERIOD"]
[424448524,1780912251000,-500.0,0.00017808,2]
[424448521,1780912251000,-270.9796492,0.00017808,2]
[424448523,1780912251000,-591.5,0.00017808,2]
[424448507,1780912251000,-500.0,0.00017534,2]
[424448519,1780912251000,-7605.51370121,0.000178,2]
[424448526,1780912251000,-513.42,0.00017808,2]
[424448539,1780912251000,-500.0,0.00017808,2]
[424448543,1780912251000,-500.0,0.00017808,2]
[424448544,1780912251000,-500.0,0.00017808,2]
[424448537,1780912251000,-528.86,0.00017808,2]
[424448535,1780912251000,-500.0,0.00017808,2]
[424448534,1780912251000,-200.46402802,0.00017808,2]
[424448533,1780912251000,-500.0,0.00017808,2]
[424448529,1780912251000,-500.0,0.00017808,2]
[424448528,1780912251000,-552.48,0.00017808,2]
[424448525,1780912251000,-500.0,0.00017808,2]
[424448527,1780912251000,-500.0,0.00017808,2]
[424448522,1780912251000,-500.0,0.00017808,2]
[424448536,1780912251000,-500.0,0.00017808,2]
[424448614,1780912252000,-500.0,0.00018082,2]
[424448624,1780912252000,-1338.88,0.00018082,2]
[424448616,1780912252000,-533.23,0.00018082,2]
[424448617,1780912252000,-500.0,0.00018082,2]
[424448615,1780912252000,-500.0,0.00018082,2]
[424448603,1780912252000,-513.42,0.00018082,2]
[424448612,1780912252000,-500.0,0.00018082,2]
[424448606,1780912252000,-500.0,0.00018082,2]
[424448605,1780912252000,-552.48,0.00018082,2]
[424448607,1780912252000,-538.6,0.00018082,2]
[424448620,1780912252000,-500.0,0.00018082,2]
[424448618,1780912252000,-500.0,0.00018082,2]
[424448608,1780912252000,-1171.3,0.00018082,2]
[424448638,1780912252000,-632.01,0.00018082,2]
[424448622,1780912252000,-151.0,0.00018082,2]
[424448613,1780912252000,-528.86,0.00018082,2]
[424448623,1780912252000,-592.89,0.00018082,2]
[424448621,1780912252000,-500.0,0.00018082,2]
[424448626,1780912252000,-500.0,0.00018082,2]
[424448636,1780912252000,-500.0,0.00018082,2]
[424448637,1780912252000,-744.76,0.00018082,2]
[424448629,1780912252000,-167.85597023,0.00018082,2]
[424448625,1780912252000,-500.0,0.00018082,2]
[424448627,1780912252000,-335.97866711,0.00018082,2]
[424448628,1780912252000,-504.92,0.00018082,2]
[424448632,1780912252000,-500.0,0.00018082,2]
[424448631,1780912252000,-500.0,0.00018082,2]
[424448604,1780912252000,-500.0,0.00018082,2]
[424448619,1780912252000,-500.0,0.00018082,2]
[424448600,1780912252000,-591.5,0.00018082,2]
[424448589,1780912252000,-500.0,0.00017808,2]
[424448598,1780912252000,-825.0,0.00018063,2]
[424448575,1780912252000,-500.0,0.00017808,2]
[424448582,1780912252000,-586.26,0.00017808,2]
[424448580,1780912252000,-533.39,0.00017808,2]
[424448583,1780912252000,-500.0,0.00017808,2]
[424448576,1780912252000,-776.81,0.00017808,2]
[424448578,1780912252000,-508.35,0.00017808,2]
[424448577,1780912252000,-500.0,0.00017808,2]
[424448579,1780912252000,-3643.54,0.00017808,2]
[424448581,1780912252000,-1083.33,0.00017808,2]
[424448584,1780912252000,-500.0,0.00017808,2]
[424448585,1780912252000,-500.0,0.00017808,2]
[424448588,1780912252000,-833.48,0.00017808,2]
[424448586,1780912252000,-500.0,0.00017808,2]
[424448601,1780912252000,-500.0,0.00018082,2]
[424448597,1780912252000,-1000.0,0.00018,2]
[424448591,1780912252000,-500.0,0.00017808,2]
[424448587,1780912252000,-500.0,0.00017808,2]
[424448630,1780912252000,-1261.48,0.00018082,2]
[424448596,1780912252000,-849.29438774,0.00018,2]
[424448592,1780912252000,-7605.51370121,0.000179,2]
[424448594,1780912252000,-1105.03940765,0.0001792,2]
[424448593,1780912252000,-996.03955675,0.000179,2]
[424448595,1780912252000,-1416.0,0.00017977,2]
[424448599,1780912252000,-500.0,0.00018082,2]
[424448611,1780912252000,-500.0,0.00018082,2]
[424448610,1780912252000,-500.0,0.00018082,2]
[424448609,1780912252000,-500.0,0.00018082,2]
[424448602,1780912252000,-500.0,0.00018082,2]
[424448590,1780912252000,-16892.34,0.00017808,2]
[424448633,1780912252000,-500.0,0.00018082,2]
[424448692,1780912252000,-500.0,0.00018356,2]
[424448635,1780912252000,-500.0,0.00018082,2]
[424448670,1780912252000,-444.0,0.00018101,2]
[424448678,1780912252000,-175.49703954,0.00018273,2]
[424448668,1780912252000,-1838.0,0.00018101,2]
[424448679,1780912252000,-7605.51370121,0.000183,2]
[424448673,1780912252000,-150.0,0.00018177,2]
[424448675,1780912252000,-150.0,0.00018177,2]
[424448671,1780912252000,-744.0,0.00018101,2]
[424448674,1780912252000,-150.0,0.00018177,2]
[424448681,1780912252000,-591.5,0.00018356,2]
[424448680,1780912252000,-500.0,0.00018356,2]
[424448693,1780912252000,-193.83503487,0.00018356,2]
[424448691,1780912252000,-188.66944945,0.00018356,2]
[424448690,1780912252000,-500.0,0.00018356,2]
[424448677,1780912252000,-150.11138926,0.00018273,2]
[424448688,1780912252000,-538.6,0.00018356,2]
[424448685,1780912252000,-500.0,0.00018356,2]
[424448682,1780912252000,-539.2633806,0.00018356,2]
[424448683,1780912252000,-500.0,0.00018356,2]
[424448686,1780912252000,-552.48,0.00018356,2]
[424448689,1780912252000,-1171.3,0.00018356,2]
[424448684,1780912252000,-513.42,0.00018356,2]
[424448694,1780912252000,-528.86,0.00018356,2]
[424448698,1780912252000,-500.0,0.00018356,2]
[424448695,1780912252000,-500.0,0.00018356,2]
[424448699,1780912252000,-500.0,0.00018356,2]
[424448697,1780912252000,-533.23,0.00018356,2]
[424448696,1780912252000,-500.0,0.00018356,2]
[424448700,1780912252000,-500.0,0.00018356,2]
[424448687,1780912252000,-500.0,0.00018356,2]
[424448676,1780912252000,-849.29438774,0.000182,2]
[424448634,1780912252000,-184.02695394,0.00018082,2]
[424448669,1780912252000,-2208.0,0.00018101,2]
[424448639,1780912252000,-672.32,0.00018082,2]
[424448641,1780912252000,-1652.01,0.00018082,2]
[424448640,1780912252000,-2718.96,0.00018082,2]
[424448642,1780912252000,-500.0,0.00018082,2]
[424448643,1780912252000,-500.0,0.00018082,2]
[424448645,1780912252000,-1652.26,0.00018082,2]
[424448649,1780912252000,-500.0,0.00018082,2]
[424448644,1780912252000,-623.77,0.00018082,2]
[424448647,1780912252000,-1423.91,0.00018082,2]
[424448648,1780912252000,-1537.16,0.00018082,2]
[424448646,1780912252000,-1218.13,0.00018082,2]
[424448650,1780912252000,-776.81,0.00018082,2]
[424448651,1780912252000,-500.0,0.00018082,2]
[424448652,1780912252000,-508.35,0.00018082,2]
[424448672,1780912252000,-186.0,0.00018101,2]
[424448664,1780912252000,-16892.34,0.00018082,2]
[424448667,1780912252000,-7605.51370121,0.000181,2]
[424448662,1780912252000,-833.48,0.00018082,2]
[424448657,1780912252000,-500.0,0.00018082,2]
[424448658,1780912252000,-500.0,0.00018082,2]
[424448654,1780912252000,-533.39,0.00018082,2]
[424448663,1780912252000,-500.0,0.00018082,2]
[424448661,1780912252000,-500.0,0.00018082,2]
[424448659,1780912252000,-500.0,0.00018082,2]
[424448656,1780912252000,-586.26,0.00018082,2]
[424448655,1780912252000,-1083.33,0.00018082,2]
[424448666,1780912252000,-202.29,0.000181,2]
[424448653,1780912252000,-3643.54,0.00018082,2]
[424448665,1780912252000,-500.0,0.00018082,2]
[424448660,1780912252000,-500.0,0.00018082,2]
[424448752,1780912253000,-605.06193807,0.0001843,2]
[424448741,1780912253000,-16892.34,0.00018356,2]
[424448750,1780912253000,-822.0,0.000184,2]
[424448743,1780912253000,-155.11554805,0.00018356,2]
[424448742,1780912253000,-500.0,0.00018356,2]
[424448735,1780912253000,-500.0,0.00018356,2]
[424448739,1780912253000,-833.48,0.00018356,2]
[424448736,1780912253000,-500.0,0.00018356,2]
[424448737,1780912253000,-500.0,0.00018356,2]
[424448727,1780912253000,-776.81,0.00018356,2]
[424448738,1780912253000,-500.0,0.00018356,2]
[424448751,1780912253000,-849.29438774,0.000184,2]
[424448740,1780912253000,-500.0,0.00018356,2]
[424448744,1780912253000,-177.40071979,0.00018356,2]
[424448756,1780912253000,-221.81898037,0.00018466,3]
[424448747,1780912253000,-198.12011784,0.00018356,2]
[424448746,1780912253000,-167.16340423,0.00018356,2]
[424448749,1780912253000,-183.95896047,0.00018387,2]
[424448748,1780912253000,-205.10642028,0.00018383,2]
[424448753,1780912253000,-156.58765989,0.00018447,2]
[424448754,1780912253000,-174.47682114,0.00018447,2]
[424448755,1780912253000,-178.0501986,0.00018447,2]
[424448764,1780912253000,-184.311259,0.0001862,2]
[424448761,1780912253000,-247.159177,0.0001862,2]
[424448765,1780912253000,-180.46483,0.0001862,2]
[424448758,1780912253000,-849.29438774,0.000185,2]
[424448757,1780912253000,-825.0,0.00018476,2]
[424448763,1780912253000,-184.311259,0.0001862,2]
[424448734,1780912253000,-500.0,0.00018356,2]
[424448745,1780912253000,-160.8426413,0.00018356,2]
[424448733,1780912253000,-586.26,0.00018356,2]
[424448725,1780912253000,-1537.16,0.00018356,2]
[424448731,1780912253000,-533.39,0.00018356,2]
[424448702,1780912253000,-500.0,0.00018356,2]
[424448705,1780912253000,-500.0,0.00018356,2]
[424448701,1780912253000,-500.0,0.00018356,2]
[424448703,1780912253000,-592.89,0.00018356,2]
[424448707,1780912253000,-504.92,0.00018356,2]
[424448709,1780912253000,-500.0,0.00018356,2]
[424448704,1780912253000,-1338.88,0.00018356,2]
[424448712,1780912253000,-500.0,0.00018356,2]
[424448711,1780912253000,-500.0,0.00018356,2]
[424448710,1780912253000,-500.0,0.00018356,2]
[424448708,1780912253000,-1261.48,0.00018356,2]
[424448706,1780912253000,-546.03079403,0.00018356,2]
[424448724,1780912253000,-1423.91,0.00018356,2]
[424448714,1780912253000,-744.76,0.00018356,2]
[424448715,1780912253000,-632.01,0.00018356,2]
[424448716,1780912253000,-672.32,0.00018356,2]
[424448759,1780912253000,-1000.0,0.000185,2]
[424448713,1780912253000,-500.0,0.00018356,2]
[424448717,1780912253000,-2718.96,0.00018356,2]
[424448720,1780912253000,-500.0,0.00018356,2]
[424448721,1780912253000,-623.77,0.00018356,2]
[424448723,1780912253000,-1218.13,0.00018356,2]
[424448719,1780912253000,-500.0,0.00018356,2]
[424448722,1780912253000,-1652.26,0.00018356,2]
[424448718,1780912253000,-1652.01,0.00018356,2]
[424448726,1780912253000,-500.0,0.00018356,2]
[424448728,1780912253000,-500.0,0.00018356,2]
[424448729,1780912253000,-508.35,0.00018356,2]
[424448732,1780912253000,-1083.33,0.00018356,2]
[424448730,1780912253000,-3643.54,0.00018356,2]
[424448760,1780912253000,-864.0,0.00018512,2]
[424448762,1780912253000,-247.159178,0.0001862,2]
[424448767,1780912253000,-210.221296,0.0001862,2]
[424448802,1780912253000,-2718.96,0.0001863,2]
[424448799,1780912253000,-744.76,0.0001863,2]
[424448797,1780912253000,-500.0,0.0001863,2]
[424448796,1780912253000,-500.0,0.0001863,2]
[424448794,1780912253000,-500.0,0.0001863,2]
[424448800,1780912253000,-632.01,0.0001863,2]
[424448798,1780912253000,-500.0,0.0001863,2]
[424448808,1780912253000,-1218.13,0.0001863,2]
[424448814,1780912253000,-508.35,0.0001863,2]
[424448812,1780912253000,-776.81,0.0001863,2]
[424448810,1780912253000,-1537.16,0.0001863,2]
[424448809,1780912253000,-1423.91,0.0001863,2]
[424448811,1780912253000,-500.0,0.0001863,2]
[424448815,1780912253000,-3643.54,0.0001863,2]
[424448816,1780912253000,-533.39,0.0001863,2]
[424448818,1780912253000,-586.26,0.0001863,2]
[424448820,1780912253000,-500.0,0.0001863,2]
[424448819,1780912253000,-500.0,0.0001863,2]
[424448817,1780912253000,-1083.33,0.0001863,2]
[424448822,1780912253000,-500.0,0.0001863,2]
[424448823,1780912253000,-500.0,0.0001863,2]
[424448821,1780912253000,-500.0,0.0001863,2]
[424448830,1780912253000,-5536.7850714,0.00018724,2]
[424448825,1780912253000,-500.0,0.0001863,2]
[424448826,1780912253000,-16892.34,0.0001863,2]
[424448827,1780912253000,-500.0,0.0001863,2]
[424448824,1780912253000,-833.48,0.0001863,2]
[424448828,1780912253000,-301.94,0.0001863,2]
[424448829,1780912253000,-849.29438774,0.000187,2]
[424448801,1780912253000,-672.32,0.0001863,2]
[424448807,1780912253000,-1652.26,0.0001863,2]
[424448813,1780912253000,-500.0,0.0001863,2]
[424448805,1780912253000,-500.0,0.0001863,2]
[424448777,1780912253000,-1171.3,0.0001863,2]
[424448806,1780912253000,-623.77,0.0001863,2]
[424448778,1780912253000,-500.0,0.0001863,2]
[424448771,1780912253000,-500.0,0.0001863,2]
[424448775,1780912253000,-500.0,0.0001863,2]
[424448768,1780912253000,-400.410198,0.0001862,2]
[424448769,1780912253000,-500.0,0.0001863,2]
[424448776,1780912253000,-538.6,0.0001863,2]
[424448773,1780912253000,-500.0,0.0001863,2]
[424448772,1780912253000,-513.42,0.0001863,2]
[424448770,1780912253000,-591.5,0.0001863,2]
[424448766,1780912253000,-210.221296,0.0001862,2]
[424448774,1780912253000,-552.48,0.0001863,2]
[424448780,1780912253000,-528.86,0.0001863,2]
[424448785,1780912253000,-500.0,0.0001863,2]
[424448779,1780912253000,-500.0,0.0001863,2]
[424448782,1780912253000,-500.0,0.0001863,2]
[424448791,1780912253000,-500.0,0.0001863,2]
[424448804,1780912253000,-333.11125097,0.0001863,2]
[424448795,1780912253000,-500.0,0.0001863,2]
[424448789,1780912253000,-592.89,0.0001863,2]
[424448790,1780912253000,-1338.88,0.0001863,2]
[424448788,1780912253000,-623.57924704,0.0001863,2]
[424448793,1780912253000,-1261.48,0.0001863,2]
[424448792,1780912253000,-504.92,0.0001863,2]
[424448783,1780912253000,-533.23,0.0001863,2]
[424448781,1780912253000,-500.0,0.0001863,2]
[424448786,1780912253000,-500.0,0.0001863,2]
[424448784,1780912253000,-500.0,0.0001863,2]
[424448803,1780912253000,-1652.01,0.0001863,2]
[424448787,1780912253000,-500.0,0.0001863,2]
[424448852,1780912254000,-592.89,0.00018904,2]
[424448841,1780912254000,-1171.3,0.00018904,2]
[424448845,1780912254000,-364.22290267,0.00018904,2]
[424448850,1780912254000,-500.0,0.00018904,2]
[424448855,1780912254000,-504.92,0.00018904,2]
[424448858,1780912254000,-429.46486452,0.00018904,2]
[424448851,1780912254000,-500.0,0.00018904,2]
[424448854,1780912254000,-500.0,0.00018904,2]
[424448853,1780912254000,-1338.88,0.00018904,2]
[424448857,1780912254000,-481.8196918,0.00018904,2]
[424448847,1780912254000,-533.23,0.00018904,2]
[424448859,1780912254000,-500.0,0.00018904,2]
[424448856,1780912254000,-1261.48,0.00018904,2]
[424448849,1780912254000,-500.0,0.00018904,2]
[424448835,1780912254000,-500.0,0.00018904,2]
[424448846,1780912254000,-500.0,0.00018904,2]
[424448842,1780912254000,-500.0,0.00018904,2]
[424448843,1780912254000,-500.0,0.00018904,2]
[424448840,1780912254000,-538.6,0.00018904,2]
[424448838,1780912254000,-552.48,0.00018904,2]
[424448837,1780912254000,-500.0,0.00018904,2]
[424448839,1780912254000,-500.0,0.00018904,2]
[424448834,1780912254000,-591.5,0.00018904,2]
[424448836,1780912254000,-513.42,0.00018904,2]
[424448833,1780912254000,-500.0,0.00018904,2]
[424448832,1780912254000,-20000.0,0.000188,2]
[424448831,1780912254000,-825.0,0.00018737,2]
[424448862,1780912254000,-744.76,0.00018904,2]
[424448848,1780912254000,-500.0,0.00018904,2]
[424448863,1780912254000,-632.01,0.00018904,2]
[424448844,1780912254000,-528.86,0.00018904,2]
[424448866,1780912254000,-1652.01,0.00018904,2]
[424448864,1780912254000,-672.32,0.00018904,2]
[424448893,1780912254000,-16714.18940744,0.00019,2]
[424448891,1780912254000,-6898.26366013,0.00018904,2]
[424448890,1780912254000,-301.94,0.00018904,2]
[424448889,1780912254000,-500.0,0.00018904,2]
[424448892,1780912254000,-375010.38383465,0.00019,2]
[424448888,1780912254000,-16892.34,0.00018904,2]
[424448886,1780912254000,-833.48,0.00018904,2]
[424448883,1780912254000,-500.0,0.00018904,2]
[424448885,1780912254000,-500.0,0.00018904,2]
[424448887,1780912254000,-500.0,0.00018904,2]
[424448884,1780912254000,-613.51861841,0.00018904,2]
[424448882,1780912254000,-500.0,0.00018904,2]
[424448881,1780912254000,-500.0,0.00018904,2]
[424448877,1780912254000,-3643.54,0.00018904,2]
[424448860,1780912254000,-500.0,0.00018904,2]
[424448876,1780912254000,-508.35,0.00018904,2]
[424448878,1780912254000,-533.39,0.00018904,2]
[424448861,1780912254000,-272.1789582,0.00018904,2]
[424448865,1780912254000,-2718.96,0.00018904,2]
[424448869,1780912254000,-1652.26,0.00018904,2]
[424448870,1780912254000,-1218.13,0.00018904,2]
[424448872,1780912254000,-1537.16,0.00018904,2]
[424448867,1780912254000,-500.0,0.00018904,2]
[424448873,1780912254000,-254.50670525,0.00018904,2]
[424448875,1780912254000,-500.0,0.00018904,2]
[424448879,1780912254000,-1083.33,0.00018904,2]
[424448880,1780912254000,-586.26,0.00018904,2]
[424448874,1780912254000,-776.81,0.00018904,2]
[424448871,1780912254000,-1423.91,0.00018904,2]
[424448868,1780912254000,-623.77,0.00018904,2]
[424448896,1780912892000,-541.87598124,0.00011165,2]
[424448897,1780912908000,-4865.17278314,0.00011278,2]
[424448898,1780912926000,-134.82721686,0.00011278,2]
[424448899,1780912942000,-5000.0,0.00011278,2]
[424448900,1780912960000,-152.0,0.00011392,7]
[424448901,1780912976000,-500.0,0.00011392,2]
[424448902,1780913368000,-232.78663926,0.00011278,2]
[424448933,1780913431000,-152.0,0.00012225,7]
[424448929,1780913431000,-4306.996613,0.00011278,2]
[424448932,1780913431000,-152.0,0.00012221,7]
[424448934,1780913431000,-1971.4037299,0.00012897,2]
[424448930,1780913431000,-460.21674774,0.00011278,2]
[424448931,1780913431000,-500.0,0.00011392,2]
[424448976,1780913439000,-400.02095422,0.00012897,2]
[424448999,1780913439000,-618.57192888,0.00012897,2]
[424449001,1780913439000,-333.6893426,0.00013699,2]
[424449007,1780913439000,-500.0,0.0001473,2]
[424449011,1780913439000,-500.0,0.0001473,2]
[424449009,1780913439000,-500.0,0.0001473,2]
[424449005,1780913439000,-199.76697085,0.0001473,2]
[424449022,1780913439000,-500.0,0.0001473,2]
[424449017,1780913439000,-500.0,0.0001473,2]
[424449013,1780913439000,-500.0,0.0001473,2]
[424449019,1780913439000,-9150.29722669,0.00014733,2]
[424449015,1780913439000,-500.0,0.0001473,2]
[424449024,1780913439000,-1228.61819708,0.00014733,2]
[424449003,1780913439000,-169.514,0.00014536,2]
[424449126,1780913440000,-4369.70325648,0.00014733,2]
[424449115,1780913440000,-500.0,0.0001473,2]
[424449121,1780913440000,-1849.73093202,0.00014733,2]
[424449119,1780913440000,-489.0148688,0.0001473,2]
[424449117,1780913440000,-500.0,0.0001473,2]
[424449265,1780913443000,-500.0,0.00011277,2]
[424449266,1780913443000,-297.9436118,0.00011277,2]
[424449273,1780913443000,-201.3763882,0.00011277,2]
[424449270,1780913443000,-298.6236118,0.00011277,2]
[424449274,1780913443000,-217.56218798,0.00011277,2]
[424449268,1780913443000,-202.0563882,0.00011277,2]
[424449288,1780913447000,-22684.89031476,0.00014733,2]
[424449287,1780913447000,-426.37704188,0.00011277,2]
[424449285,1780913447000,-211.26577014,0.00011277,2]
[424449286,1780913447000,-500.0,0.00011277,2]
[424449298,1780914130000,4834.17093832,7.6e-05,2]
[424449301,1780914261000,-5000.0,0.00010721,2]
[424449302,1780914315000,-247.65970212,0.00011504,7]
[424449309,1780914368000,-288.01775177,0.00011842,7]
[424449310,1780914421000,-152.0,0.00012114,7]
[424449311,1780914475000,-152.0,0.00012114,7]
[424449323,1780914528000,-152.0,0.00012135,7]
[424449324,1780914581000,-152.0,0.00012135,7]
[424449332,1780914635000,-500.0,0.00012459,2]
[424449333,1780914635000,-500.0,0.00012459,2]
[424449334,1780914635000,-500.0,0.00012459,2]
[424449335,1780914635000,-500.0,0.00012459,2]
[424449338,1780914635000,-230.799,0.00012459,2]
[424449336,1780914635000,-500.0,0.00012459,2]
[424449339,1780914635000,-269.201,0.00012459,2]
[424449342,1780914635000,-158.48633799,0.00012459,2]
[424449337,1780914635000,-500.0,0.00012459,2]
[424449341,1780914635000,-158.75866201,0.00012459,2]
[424449343,1780914635000,-455.49401121,0.00012459,2]
[424449331,1780914635000,-152.0,0.0001239,7]
[424449340,1780914635000,-500.0,0.00012459,2]
[424449350,1780914635000,-500.0,0.00012459,2]
[424449346,1780914635000,-492.31045846,0.00012459,2]
[424449347,1780914635000,-37.44280067,0.00012459,2]
[424449345,1780914635000,-500.0,0.00012459,2]
[424449348,1780914635000,-336.531683,0.00012459,2]
[424449349,1780914635000,-126.02551633,0.00012459,2]
[424449351,1780914635000,-500.0,0.00012459,2]
[424449352,1780914635000,-500.0,0.00012459,2]
[424449353,1780914635000,-450.0,0.00012459,2]
[424449354,1780914635000,-165.0,0.00012459,2]
[424449357,1780914635000,-4750.25289583,0.00012461,2]
[424449356,1780914635000,-3341.09884215,0.0001246,2]
[424449355,1780914635000,-5000.0,0.0001246,2]
[424449344,1780914635000,-44.50598879,0.00012459,2]
[424449814,1780914646000,-5659.72390617,0.00012461,2]
[424449815,1780914646000,-300.0,0.0001271,2]
[424449817,1780914646000,-300.0,0.0001271,2]
[424449816,1780914646000,-300.0,0.0001271,2]
[424449818,1780914646000,-300.0,0.0001271,2]
[424449821,1780914646000,-141.18021918,0.0001271,2]
[424449820,1780914646000,-205.42390617,0.0001271,2]
[424449825,1780914646000,4196.3203551,0.00012459,2]
[424449819,1780914646000,-94.57609383,0.0001271,2]
[424449846,1780914648000,-415.519,0.00012459,2]
[424449845,1780914648000,-306.26508719,0.00012459,2]
[424449853,1780915305000,-500.0,0.00011502,2]
[424449854,1780915341000,-500.0,0.00011502,2]
[424449855,1780915341000,-500.0,0.00011502,2]
[424449856,1780915341000,-318.57511731,0.00011502,2]
[424449857,1780915341000,-500.0,0.00011502,2]
[424449858,1780915341000,-425.8127821,0.00011502,2]
[424449859,1780915341000,-500.0,0.00011502,2]
[424449861,1780915341000,-500.0,0.00011502,2]
[424449865,1780915341000,-509.60843736,0.00011502,2]
[424449860,1780915341000,-500.0,0.00011502,2]
[424449863,1780915341000,-500.0,0.00011502,2]
[424449864,1780915341000,-500.0,0.00011502,2]
[424449862,1780915341000,-500.0,0.00011502,2]
[424449866,1780915341000,-500.0,0.00011502,2]
[424449867,1780915341000,-499.99999999,0.00011502,2]
[424449868,1780915341000,-3246.00366324,0.00011503,2]
[424449869,1780915344000,-1753.99633676,0.00011503,2]
[424449870,1780915344000,-558.22347635,0.00011618,2]
[424449872,1780915344000,-891.28424987,0.00011618,2]
[424449874,1780915344000,-891.28424987,0.00011618,2]
[424449873,1780915344000,-891.28424987,0.00011618,2]
[424449871,1780915344000,-891.28424987,0.00011618,2]
[424449875,1780915344000,-891.28424987,0.00011618,2]
[424449878,1780915344000,-891.28424987,0.00011618,2]
[424449876,1780915344000,-891.28424987,0.00011618,2]
[424449879,1780915344000,-557.50618793,0.00011618,2]
[424449877,1780915344000,-891.28424987,0.00011618,2]
[424449881,1780915346000,-891.28424987,0.00011618,2]
[424449882,1780915346000,-891.28424987,0.00011618,2]
[424449884,1780915346000,-891.28424987,0.00011618,2]
[424449883,1780915346000,-891.28424987,0.00011618,2]
[424449886,1780915346000,-891.28424987,0.00011618,2]
[424449880,1780915346000,-333.77806194,0.00011618,2]
[424449887,1780915346000,-891.28424987,0.00011618,2]
[424449889,1780915346000,-891.28424987,0.00011618,2]
[424449891,1780915346000,-753.37943936,0.00011618,2]
[424449888,1780915346000,-891.28424987,0.00011618,2]
[424449890,1780915346000,-891.28424987,0.00011618,2]
[424449885,1780915346000,-891.28424987,0.00011618,2]
[424449893,1780915347000,-948.00233849,0.00011618,2]
[424449892,1780915347000,-194.62289913,0.00011618,2]
[424449894,1780915347000,-948.00233849,0.00011618,2]
[424449899,1780915347000,-948.00233849,0.00011618,2]
[424449897,1780915347000,-948.00233849,0.00011618,2]
[424449896,1780915347000,-948.00233849,0.00011618,2]
[424449895,1780915347000,-948.00233849,0.00011618,2]
[424449901,1780915347000,-1078.35266003,0.00011618,2]
[424449902,1780915347000,-351.61,0.00011738,2]
[424449900,1780915347000,-1078.35266003,0.00011618,2]
[424449904,1780915347000,-309.43541138,0.00011738,2]
[424449903,1780915347000,-351.61,0.00011738,2]
[424449898,1780915347000,-948.00233849,0.00011618,2]
[424449906,1780915348000,-351.61,0.00011738,2]
[424449912,1780915348000,-300.0,0.00011971,2]
[424449911,1780915348000,-300.0,0.00011971,2]
[424449909,1780915348000,-300.0,0.00011971,2]
[424449907,1780915348000,-300.0,0.00011971,2]
[424449908,1780915348000,-300.0,0.00011971,2]
[424449905,1780915348000,-42.19458862,0.00011738,2]
[424449915,1780915348000,-300.0,0.00011971,2]
[424449910,1780915348000,-300.0,0.00011971,2]
[424449913,1780915348000,-300.0,0.00011971,2]
[424449919,1780915348000,-300.0,0.00011971,2]
[424449916,1780915348000,-300.0,0.00011971,2]
[424449914,1780915348000,-300.0,0.00011971,2]
[424449926,1780915348000,-500.0,0.00013698,2]
[424449923,1780915348000,-152.0,0.00013188,7]
[424449922,1780915348000,-1881.9954216,0.00012877,2]
[424449925,1780915348000,-263.54,0.00013698,2]
[424449918,1780915348000,-300.0,0.00011971,2]
[424449920,1780915348000,-300.0,0.00011971,2]
[424449921,1780915348000,-300.0,0.00011971,2]
[424449924,1780915348000,-500.0,0.00013698,2]
[424449917,1780915348000,-300.0,0.00011971,2]